[Event "Early-Titled-Tuesday-Blitz-July-09-2024"]
[Site "Chess.com"]
[Date "2024.07.09"]
[Round "6"]
[White "MagnusCarlsen"]
[Black "artin10862"]
[Result "1-0"]
[WhiteElo "3186"]
[BlackElo "2953"]
[TimeControl "180+1"]
[EndTime "9:08:48 PDT"]
[Termination "MagnusCarlsen won by resignation"]

1. e4 {[%clk 0:03:00.9]} 1... c5 {[%clk 0:02:59]} 2. Nf3 {[%clk 0:03:00]} 2...
e6 {[%clk 0:02:58.8]} 3. Bd3 {[%clk 0:02:57.8]} 3... Nc6 {[%clk 0:02:50.3]} 4.
O-O {[%clk 0:02:57.3]} 4... g5 {[%clk 0:02:50.1]} 5. Bb5 {[%clk 0:02:57.3]} 5...
g4 {[%clk 0:02:40.8]} 6. Ne1 {[%clk 0:02:56.5]} 6... Nd4 {[%clk 0:02:29.6]} 7.
Bd3 {[%clk 0:02:52.6]} 7... h5 {[%clk 0:02:23.9]} 8. c3 {[%clk 0:02:52.2]} 8...
Nc6 {[%clk 0:02:23.6]} 9. Bb5 {[%clk 0:02:52.8]} 9... Qb6 {[%clk 0:02:18.3]} 10.
a4 {[%clk 0:02:51.9]} 10... a6 {[%clk 0:02:15]} 11. Bxc6 {[%clk 0:02:40.5]}
11... Qxc6 {[%clk 0:02:15.9]} 12. d4 {[%clk 0:02:34.4]} 12... Qxe4 {[%clk
0:02:13.2]} 13. Nd3 {[%clk 0:02:28.2]} 13... cxd4 {[%clk 0:02:07.6]} 14. Re1
{[%clk 0:02:28.5]} 14... Qc6 {[%clk 0:02:02.6]} 15. cxd4 {[%clk 0:02:27.9]}
15... Nf6 {[%clk 0:01:50.2]} 16. Nc3 {[%clk 0:02:27]} 16... Nd5 {[%clk
0:01:23.9]} 17. Ne5 {[%clk 0:02:26.4]} 17... Nxc3 {[%clk 0:01:23.8]} 18. bxc3
{[%clk 0:02:27.3]} 18... Qxc3 {[%clk 0:01:22.3]} 19. Bg5 {[%clk 0:02:26.5]}
19... d6 {[%clk 0:01:13.5]} 20. Rc1 {[%clk 0:02:25.7]} 20... Qa5 {[%clk
0:01:13.3]} 21. Bd2 {[%clk 0:02:14.4]} 21... Qd8 {[%clk 0:01:05.1]} 22. Nc4
{[%clk 0:02:14.4]} 22... b5 {[%clk 0:01:02.5]} 23. Ba5 {[%clk 0:02:13.2]} 23...
Qg5 {[%clk 0:00:52.4]} 24. Nb6 {[%clk 0:02:12.4]} 24... Bh6 {[%clk 0:00:35.6]}
25. Rxc8+ {[%clk 0:02:00.3]} 25... Rxc8 {[%clk 0:00:35.5]} 26. Nxc8 {[%clk
0:02:01.2]} 26... O-O {[%clk 0:00:32.3]} 27. Nxd6 {[%clk 0:01:59.8]} 27... Qd5
{[%clk 0:00:30.4]} 28. Ne4 {[%clk 0:01:59.8]} 28... Bg7 {[%clk 0:00:29]} 29.
axb5 {[%clk 0:01:59.6]} 29... axb5 {[%clk 0:00:28.5]} 30. Bb4 {[%clk 0:01:57.8]}
30... Rd8 {[%clk 0:00:28.3]} 31. Be7 {[%clk 0:01:57.2]} 31... Rd7 {[%clk
0:00:23.3]} 32. Nf6+ {[%clk 0:01:55.9]} 32... Bxf6 {[%clk 0:00:24]} 33. Bxf6
{[%clk 0:01:56.8]} 33... Qf5 {[%clk 0:00:24.6]} 34. Be5 {[%clk 0:01:53.8]} 34...
f6 {[%clk 0:00:18.1]} 35. Qc1 {[%clk 0:01:53.1]} 35... Kf7 {[%clk 0:00:14.4]}
36. Qc6 {[%clk 0:01:44.2]} 36... Rd5 {[%clk 0:00:14.3]} 37. Bg3 {[%clk 0:01:35]}
37... Rxd4 {[%clk 0:00:14.5]} 38. Qc7+ {[%clk 0:01:19.9]} 38... Kg6 {[%clk
0:00:14.5]} 39. Qe7 {[%clk 0:01:19.5]} 39... e5 {[%clk 0:00:12.3]} 40. Qe8+
{[%clk 0:01:19.7]} 40... Kg5 {[%clk 0:00:12.9]} 41. Qg8+ {[%clk 0:01:10.8]}
41... Kh6 {[%clk 0:00:09.2]} 42. Bh4 {[%clk 0:01:11.4]} 42... b4 {[%clk
0:00:03.7]} 43. Rc1 {[%clk 0:01:06.2]} 43... b3 {[%clk 0:00:01.7]} 44. Qxb3
{[%clk 0:01:04.8]} 44... Kg6 {[%clk 0:00:01.3]} 45. Qg8+ {[%clk 0:01:03.7]}
45... Kh6 {[%clk 0:00:02]} 46. Qf7 {[%clk 0:00:47.9]} 46... Rd6 {[%clk
0:00:01.5]} 47. Qf8+ {[%clk 0:00:48.2]} 1-0

[Event "Early-Titled-Tuesday-Blitz-July-09-2024"]
[Site "Chess.com"]
[Date "2024.07.09"]
[Round "6"]
[White "LewAnatol"]
[Black "ThetNaung291"]
[Result "0-1"]
[WhiteElo "2187"]
[BlackElo "2446"]
[TimeControl "180+1"]
[EndTime "9:08:48 PDT"]
[Termination "ThetNaung291 won on time"]

1. e4 {[%clk 0:03:00.9]} 1... c5 {[%clk 0:02:59.5]} 2. Nf3 {[%clk 0:03:00.8]}
2... d6 {[%clk 0:02:59.2]} 3. d4 {[%clk 0:03:00.7]} 3... cxd4 {[%clk 0:02:59.1]}
4. Nxd4 {[%clk 0:03:01]} 4... Nf6 {[%clk 0:02:59.1]} 5. Nc3 {[%clk 0:03:01.4]}
5... a6 {[%clk 0:02:59.1]} 6. Bg5 {[%clk 0:03:01.2]} 6... Nbd7 {[%clk
0:02:58.4]} 7. f4 {[%clk 0:03:01]} 7... h6 {[%clk 0:02:57]} 8. Bxf6 {[%clk
0:02:57]} 8... gxf6 {[%clk 0:02:55.8]} 9. Qf3 {[%clk 0:02:46.7]} 9... e6 {[%clk
0:02:48]} 10. O-O-O {[%clk 0:02:43.8]} 10... Qc7 {[%clk 0:02:47.4]} 11. f5
{[%clk 0:02:30.4]} 11... Ne5 {[%clk 0:02:42.2]} 12. Qh5 {[%clk 0:02:29]} 12...
Ke7 {[%clk 0:02:28.2]} 13. Be2 {[%clk 0:02:08.4]} 13... Qc5 {[%clk 0:02:19.7]}
14. Kb1 {[%clk 0:01:47.1]} 14... Bd7 {[%clk 0:02:18.3]} 15. Nb3 {[%clk
0:01:18.2]} 15... Qe3 {[%clk 0:02:14.9]} 16. fxe6 {[%clk 0:01:04.9]} 16... fxe6
{[%clk 0:02:13.7]} 17. Rhe1 {[%clk 0:00:47.4]} 17... Qg5 {[%clk 0:02:11.1]} 18.
Qh3 {[%clk 0:00:43.3]} 18... Rg8 {[%clk 0:01:44.6]} 19. g3 {[%clk 0:00:40.2]}
19... Rc8 {[%clk 0:01:34]} 20. Qf1 {[%clk 0:00:32.8]} 20... h5 {[%clk
0:01:29.7]} 21. Qf2 {[%clk 0:00:29.3]} 21... h4 {[%clk 0:01:25.4]} 22. gxh4
{[%clk 0:00:25.6]} 22... Qg2 {[%clk 0:01:24.7]} 23. Qb6 {[%clk 0:00:24.3]} 23...
Qxh2 {[%clk 0:01:13.8]} 24. Qxd6+ {[%clk 0:00:17.2]} 24... Ke8 {[%clk
0:01:08.3]} 25. Bh5+ {[%clk 0:00:16.1]} 25... Kd8 {[%clk 0:01:05]} 26. Qxe6
{[%clk 0:00:15]} 26... Qg3 {[%clk 0:00:43.5]} 27. Be8 {[%clk 0:00:11.8]} 27...
Qxe1 {[%clk 0:00:38.8]} 28. Qb6+ {[%clk 0:00:08.1]} 28... Kxe8 {[%clk
0:00:37.9]} 29. Rxe1 {[%clk 0:00:08.1]} 29... Bc6 {[%clk 0:00:35.7]} 30. Qf2
{[%clk 0:00:05.3]} 30... Be7 {[%clk 0:00:34.4]} 31. Nd4 {[%clk 0:00:04.7]} 31...
Bd7 {[%clk 0:00:30.4]} 32. Nf5 {[%clk 0:00:04.2]} 32... Bxf5 {[%clk 0:00:28.6]}
33. Qxf5 {[%clk 0:00:03.6]} 33... Kf7 {[%clk 0:00:27.4]} 34. Nd5 {[%clk
0:00:02.9]} 34... Bd8 {[%clk 0:00:25.3]} 35. Qxc8 {[%clk 0:00:02]} 35... Rg1
{[%clk 0:00:24.1]} 0-1

[Event "Early-Titled-Tuesday-Blitz-July-09-2024"]
[Site "Chess.com"]
[Date "2024.07.09"]
[Round "6"]
[White "Happy1712Drummer"]
[Black "yonaltimur"]
[Result "0-1"]
[WhiteElo "2447"]
[BlackElo "2260"]
[TimeControl "180+1"]
[EndTime "9:08:48 PDT"]
[Termination "yonaltimur won on time"]

1. e4 {[%clk 0:03:00.9]} 1... c5 {[%clk 0:02:59.8]} 2. Nf3 {[%clk 0:02:57.9]}
2... d6 {[%clk 0:03:00]} 3. Bb5+ {[%clk 0:02:57.6]} 3... Bd7 {[%clk 0:02:59.9]}
4. Bxd7+ {[%clk 0:02:55.8]} 4... Qxd7 {[%clk 0:03:00.8]} 5. O-O {[%clk
0:02:55.9]} 5... Nc6 {[%clk 0:03:01.5]} 6. d3 {[%clk 0:02:55.4]} 6... Nf6 {[%clk
0:03:02]} 7. Bg5 {[%clk 0:02:55.2]} 7... e6 {[%clk 0:03:01.5]} 8. Bxf6 {[%clk
0:02:54.7]} 8... gxf6 {[%clk 0:03:02.4]} 9. Nc3 {[%clk 0:02:55.2]} 9... Be7
{[%clk 0:03:02.6]} 10. d4 {[%clk 0:02:54.9]} 10... cxd4 {[%clk 0:03:02]} 11.
Nxd4 {[%clk 0:02:55.8]} 11... h5 {[%clk 0:03:00.7]} 12. Nxc6 {[%clk 0:02:51.7]}
12... Qxc6 {[%clk 0:03:01.6]} 13. Qf3 {[%clk 0:02:51.8]} 13... h4 {[%clk
0:03:01.6]} 14. h3 {[%clk 0:02:51.4]} 14... O-O-O {[%clk 0:02:55.9]} 15. Rad1
{[%clk 0:02:48.6]} 15... Rdg8 {[%clk 0:02:55.9]} 16. Rd3 {[%clk 0:02:46.5]}
16... Rg5 {[%clk 0:02:55.4]} 17. Ne2 {[%clk 0:02:43.5]} 17... Rhg8 {[%clk
0:02:53.4]} 18. Rc3 {[%clk 0:02:36.7]} 18... Rc5 {[%clk 0:02:48.9]} 19. Rd1
{[%clk 0:02:25]} 19... Rxc3 {[%clk 0:02:40.5]} 20. Qxc3 {[%clk 0:02:22.1]} 20...
Qxc3 {[%clk 0:02:37.2]} 21. Nxc3 {[%clk 0:02:23]} 21... Rg5 {[%clk 0:02:35.6]}
22. Rd3 {[%clk 0:01:56.9]} 22... Kd7 {[%clk 0:02:22.3]} 23. Ne2 {[%clk 0:01:51]}
23... Rc5 {[%clk 0:02:13.4]} 24. c3 {[%clk 0:01:43.4]} 24... f5 {[%clk
0:02:05.5]} 25. exf5 {[%clk 0:01:29.7]} 25... Rxf5 {[%clk 0:02:06.4]} 26. Nd4
{[%clk 0:01:29.4]} 26... Rd5 {[%clk 0:02:04.5]} 27. c4 {[%clk 0:01:25.5]} 27...
Rc5 {[%clk 0:02:04.4]} 28. b3 {[%clk 0:01:24.8]} 28... Bf6 {[%clk 0:02:04.2]}
29. Nb5 {[%clk 0:00:58.5]} 29... d5 {[%clk 0:01:55.3]} 30. Nxa7 {[%clk
0:00:48.9]} 30... Ke8 {[%clk 0:01:05.7]} 31. cxd5 {[%clk 0:00:37.9]} 31... Rc1+
{[%clk 0:01:03]} 32. Kh2 {[%clk 0:00:35.8]} 32... Rc2 {[%clk 0:01:02.3]} 33. f4
{[%clk 0:00:15.7]} 33... Rxa2 {[%clk 0:00:57.6]} 34. Nb5 {[%clk 0:00:14.1]}
34... exd5 {[%clk 0:00:57.4]} 35. Nc7+ {[%clk 0:00:13.7]} 35... Kf8 {[%clk
0:00:56.2]} 36. Nxd5 {[%clk 0:00:13.2]} 36... Bg7 {[%clk 0:00:49.2]} 37. Ne3
{[%clk 0:00:12.8]} 37... Re2 {[%clk 0:00:44.1]} 38. Nf5 {[%clk 0:00:12.7]} 38...
Bf6 {[%clk 0:00:44.3]} 39. Re3 {[%clk 0:00:10.9]} 39... Rf2 {[%clk 0:00:43.1]}
40. Rd3 {[%clk 0:00:03.9]} 40... Rxf4 {[%clk 0:00:41.3]} 41. Nd6 {[%clk
0:00:04.1]} 41... Rf1 {[%clk 0:00:36]} 42. Nc4 {[%clk 0:00:03.3]} 42... Bg5
{[%clk 0:00:33.3]} 0-1

[Event "Early-Titled-Tuesday-Blitz-July-09-2024"]
[Site "Chess.com"]
[Date "2024.07.09"]
[Round "6"]
[White "VacheH009"]
[Black "Os55555"]
[Result "0-1"]
[WhiteElo "2517"]
[BlackElo "2347"]
[TimeControl "180+1"]
[EndTime "9:08:52 PDT"]
[Termination "Os55555 won on time"]

1. d4 {[%clk 0:02:24.3]} 1... Nf6 {[%clk 0:02:59.6]} 2. Nf3 {[%clk 0:02:19.4]}
2... e6 {[%clk 0:02:59.3]} 3. c4 {[%clk 0:02:16.2]} 3... d5 {[%clk 0:02:58.8]}
4. Nc3 {[%clk 0:02:15.1]} 4... c6 {[%clk 0:02:56]} 5. Bg5 {[%clk 0:02:12]} 5...
Nbd7 {[%clk 0:02:54.2]} 6. e3 {[%clk 0:01:54.7]} 6... Qa5 {[%clk 0:02:53.3]} 7.
cxd5 {[%clk 0:01:52]} 7... Nxd5 {[%clk 0:02:50]} 8. Qb3 {[%clk 0:01:37.7]} 8...
Bb4 {[%clk 0:02:20.9]} 9. Rc1 {[%clk 0:01:35.4]} 9... O-O {[%clk 0:02:11]} 10.
a3 {[%clk 0:01:30.7]} 10... Bd6 {[%clk 0:02:08.6]} 11. Be2 {[%clk 0:01:26.8]}
11... Nxc3 {[%clk 0:02:08.6]} 12. Qxc3 {[%clk 0:01:24.4]} 12... Qxc3+ {[%clk
0:02:07.1]} 13. Rxc3 {[%clk 0:01:25.3]} 13... Nb6 {[%clk 0:02:05.5]} 14. O-O
{[%clk 0:01:23.5]} 14... Bd7 {[%clk 0:02:03.1]} 15. e4 {[%clk 0:01:17.9]} 15...
f6 {[%clk 0:01:56.2]} 16. Be3 {[%clk 0:01:14]} 16... Rad8 {[%clk 0:01:42.9]} 17.
Rd1 {[%clk 0:01:05.9]} 17... Bc7 {[%clk 0:01:24.3]} 18. h3 {[%clk 0:00:57.9]}
18... f5 {[%clk 0:01:21]} 19. Bg5 {[%clk 0:00:46.1]} 19... Rde8 {[%clk
0:01:15.9]} 20. e5 {[%clk 0:00:41]} 20... Nd5 {[%clk 0:01:12.5]} 21. Rcc1 {[%clk
0:00:41.2]} 21... Bb6 {[%clk 0:01:08.7]} 22. Bc4 {[%clk 0:00:36]} 22... f4
{[%clk 0:01:05.2]} 23. Bxd5 {[%clk 0:00:33.1]} 23... exd5 {[%clk 0:00:54.5]} 24.
g3 {[%clk 0:00:10.6]} 24... fxg3 {[%clk 0:00:53.1]} 25. Rd3 {[%clk 0:00:10]}
25... gxf2+ {[%clk 0:00:46.7]} 26. Kxf2 {[%clk 0:00:10.9]} 26... Bxh3 {[%clk
0:00:47.2]} 27. Kg3 {[%clk 0:00:10]} 27... Bf5 {[%clk 0:00:46.9]} 28. Rb3 {[%clk
0:00:09.2]} 28... Be4 {[%clk 0:00:45.6]} 29. Bf4 {[%clk 0:00:06.7]} 29... h6
{[%clk 0:00:43.5]} 30. Rd1 {[%clk 0:00:06]} 30... Rf7 {[%clk 0:00:39.6]} 31. Bc1
{[%clk 0:00:05.8]} 31... Bc2 {[%clk 0:00:38.2]} 32. Rdd3 {[%clk 0:00:04.2]}
32... Bxb3 {[%clk 0:00:37.5]} 33. Rxb3 {[%clk 0:00:04.4]} 33... Kh7 {[%clk
0:00:32.1]} 34. a4 {[%clk 0:00:04.2]} 34... g5 {[%clk 0:00:29.6]} 35. Be3 {[%clk
0:00:03.9]} 35... Ref8 {[%clk 0:00:28.2]} 36. Ne1 {[%clk 0:00:03.6]} 36... Rf1
{[%clk 0:00:27.6]} 37. Bd2 {[%clk 0:00:02.3]} 37... Bxd4 {[%clk 0:00:26.2]} 38.
e6 {[%clk 0:00:02.2]} 38... Be5+ {[%clk 0:00:26]} 39. Kg4 {[%clk 0:00:01.7]}
39... Rg1+ {[%clk 0:00:26.1]} 0-1

[Event "Early-Titled-Tuesday-Blitz-July-09-2024"]
[Site "Chess.com"]
[Date "2024.07.09"]
[Round "6"]
[White "chrisclaireredfield"]
[Black "oykuince"]
[Result "1-0"]
[WhiteElo "2511"]
[BlackElo "2137"]
[TimeControl "180+1"]
[EndTime "9:08:52 PDT"]
[Termination "chrisclaireredfield won by checkmate"]

1. Nf3 {[%clk 0:03:00.9]} 1... Nf6 {[%clk 0:02:59.2]} 2. g3 {[%clk 0:02:59.6]}
2... g6 {[%clk 0:02:57.1]} 3. Bg2 {[%clk 0:02:58.4]} 3... Bg7 {[%clk 0:02:57.4]}
4. O-O {[%clk 0:02:57]} 4... O-O {[%clk 0:02:58]} 5. d4 {[%clk 0:02:56.9]} 5...
d6 {[%clk 0:02:56.2]} 6. b3 {[%clk 0:02:56.9]} 6... Bg4 {[%clk 0:02:53.4]} 7. h3
{[%clk 0:02:54.8]} 7... Bxf3 {[%clk 0:02:51.9]} 8. Bxf3 {[%clk 0:02:55]} 8... c6
{[%clk 0:02:52.6]} 9. Bb2 {[%clk 0:02:54.6]} 9... Nbd7 {[%clk 0:02:53.1]} 10.
Nd2 {[%clk 0:02:53.8]} 10... Qc7 {[%clk 0:02:53]} 11. e4 {[%clk 0:02:52.8]}
11... e5 {[%clk 0:02:53.6]} 12. dxe5 {[%clk 0:02:48.4]} 12... Nxe5 {[%clk
0:02:49.2]} 13. Bg2 {[%clk 0:02:48.2]} 13... Rfe8 {[%clk 0:02:44.6]} 14. f4
{[%clk 0:02:46.6]} 14... Ned7 {[%clk 0:02:44.5]} 15. Re1 {[%clk 0:02:44.7]}
15... Nh5 {[%clk 0:02:41.7]} 16. Bxg7 {[%clk 0:02:41.3]} 16... Kxg7 {[%clk
0:02:34.4]} 17. Qf3 {[%clk 0:02:40.9]} 17... Qa5 {[%clk 0:02:25.3]} 18. Nc4
{[%clk 0:02:38.5]} 18... Qc5+ {[%clk 0:02:24.1]} 19. Kh2 {[%clk 0:02:37.5]}
19... b5 {[%clk 0:02:20]} 20. Ne3 {[%clk 0:02:37.2]} 20... a5 {[%clk 0:02:12.7]}
21. Rad1 {[%clk 0:02:28.7]} 21... Rad8 {[%clk 0:02:08.4]} 22. c4 {[%clk
0:02:25.9]} 22... Nhf6 {[%clk 0:02:05.6]} 23. cxb5 {[%clk 0:02:20.2]} 23... cxb5
{[%clk 0:01:52.6]} 24. Nd5 {[%clk 0:02:19.4]} 24... Nxd5 {[%clk 0:01:44.7]} 25.
Rxd5 {[%clk 0:02:18.8]} 25... Qb4 {[%clk 0:01:43.7]} 26. Red1 {[%clk 0:02:17.4]}
26... Nf6 {[%clk 0:01:42.3]} 27. R5d4 {[%clk 0:02:16.1]} 27... Qa3 {[%clk
0:01:18.1]} 28. e5 {[%clk 0:02:16.1]} 28... Nh5 {[%clk 0:01:11.9]} 29. Rxd6
{[%clk 0:02:10.6]} 29... Rxd6 {[%clk 0:01:10.2]} 30. exd6 {[%clk 0:02:10.4]}
30... Qxa2 {[%clk 0:01:04.4]} 31. d7 {[%clk 0:02:08.4]} 31... Rd8 {[%clk
0:01:03.7]} 32. Qc3+ {[%clk 0:02:07.7]} 32... Nf6 {[%clk 0:00:55.4]} 33. Qc8
{[%clk 0:01:58.6]} 33... Qe2 {[%clk 0:00:47.2]} 34. Rd6 {[%clk 0:01:50.9]} 34...
Qe7 {[%clk 0:00:35.7]} 35. Qc6 {[%clk 0:01:10]} 35... Nxd7 {[%clk 0:00:31.8]}
36. Qc7 {[%clk 0:00:58.9]} 36... Qe8 {[%clk 0:00:24.1]} 37. h4 {[%clk
0:00:56.6]} 37... h5 {[%clk 0:00:22.2]} 38. Kh3 {[%clk 0:00:52.6]} 38... Qe7
{[%clk 0:00:14.8]} 39. Bc6 {[%clk 0:00:50.3]} 39... Qe1 {[%clk 0:00:11.1]} 40.
Rxd7 {[%clk 0:00:47.8]} 40... Qe6+ {[%clk 0:00:09]} 41. Kh2 {[%clk 0:00:45.8]}
41... Rxd7 {[%clk 0:00:09.1]} 42. Qxd7 {[%clk 0:00:45.3]} 42... Qxb3 {[%clk
0:00:09.4]} 43. Bxb5 {[%clk 0:00:40.4]} 43... Qc2+ {[%clk 0:00:09.7]} 44. Kh3
{[%clk 0:00:39.5]} 44... Qc1 {[%clk 0:00:08.9]} 45. Qd5 {[%clk 0:00:37.8]} 45...
Qe1 {[%clk 0:00:07.8]} 46. Bc4 {[%clk 0:00:36.3]} 46... Qg1 {[%clk 0:00:07.4]}
47. Qxf7+ {[%clk 0:00:35.6]} 47... Kh6 {[%clk 0:00:08]} 48. Qf8+ {[%clk
0:00:35.8]} 48... Kh7 {[%clk 0:00:08.6]} 49. Bg8+ {[%clk 0:00:35.6]} 49... Kh8
{[%clk 0:00:08.3]} 50. Bf7+ {[%clk 0:00:36.1]} 50... Kh7 {[%clk 0:00:09]} 51.
Qg8+ {[%clk 0:00:36.8]} 51... Kh6 {[%clk 0:00:09.9]} 52. Qxg6# {[%clk 0:00:37]}
1-0

[Event "Early-Titled-Tuesday-Blitz-July-09-2024"]
[Site "Chess.com"]
[Date "2024.07.09"]
[Round "6"]
[White "aanshnerurkar"]
[Black "FoggyMorning"]
[Result "0-1"]
[WhiteElo "2462"]
[BlackElo "2661"]
[TimeControl "180+1"]
[EndTime "9:08:59 PDT"]
[Termination "FoggyMorning won on time"]

1. e4 {[%clk 0:03:00.9]} 1... e6 {[%clk 0:03:00.1]} 2. d4 {[%clk 0:02:58.8]}
2... d5 {[%clk 0:03:01]} 3. Nd2 {[%clk 0:02:58.2]} 3... c5 {[%clk 0:03:00.9]} 4.
Ngf3 {[%clk 0:02:57]} 4... cxd4 {[%clk 0:03:01]} 5. Nxd4 {[%clk 0:02:57.1]} 5...
Nc6 {[%clk 0:03:01.4]} 6. Bb5 {[%clk 0:02:56.5]} 6... Bd7 {[%clk 0:03:00.3]} 7.
Nxc6 {[%clk 0:02:56.6]} 7... bxc6 {[%clk 0:03:00.8]} 8. Bd3 {[%clk 0:02:56.7]}
8... Bd6 {[%clk 0:03:00]} 9. Qe2 {[%clk 0:02:54.3]} 9... Qc7 {[%clk 0:02:57.6]}
10. Nf3 {[%clk 0:02:53.9]} 10... e5 {[%clk 0:02:54.3]} 11. exd5 {[%clk
0:02:43.8]} 11... cxd5 {[%clk 0:02:50.8]} 12. Nxe5 {[%clk 0:02:43.1]} 12... Bxe5
{[%clk 0:02:48.4]} 13. f4 {[%clk 0:02:42.8]} 13... f6 {[%clk 0:02:26.7]} 14. O-O
{[%clk 0:02:41.5]} 14... Ne7 {[%clk 0:02:24.9]} 15. fxe5 {[%clk 0:02:40.9]}
15... Qxe5 {[%clk 0:02:19.4]} 16. Qf2 {[%clk 0:02:39.2]} 16... Qd6 {[%clk
0:01:48.3]} 17. Re1 {[%clk 0:02:35.5]} 17... Kf7 {[%clk 0:01:41.8]} 18. Be3
{[%clk 0:02:16.3]} 18... Qc7 {[%clk 0:01:19.4]} 19. Kh1 {[%clk 0:01:20.7]} 19...
Ng6 {[%clk 0:01:15.4]} 20. Bd4 {[%clk 0:01:17.9]} 20... Rhe8 {[%clk 0:01:13.7]}
21. Qf3 {[%clk 0:01:12]} 21... Bc6 {[%clk 0:01:09.3]} 22. Qh5 {[%clk 0:00:49.3]}
22... Kg8 {[%clk 0:00:42.2]} 23. Rf1 {[%clk 0:00:34.8]} 23... Qf7 {[%clk
0:00:35.8]} 24. Rf3 {[%clk 0:00:19.5]} 24... Nf8 {[%clk 0:00:34.8]} 25. Qh4
{[%clk 0:00:19.2]} 25... Bd7 {[%clk 0:00:31.9]} 26. Rg3 {[%clk 0:00:12.6]} 26...
Kh8 {[%clk 0:00:29.3]} 27. Rf1 {[%clk 0:00:08.8]} 27... Rac8 {[%clk 0:00:13.3]}
28. h3 {[%clk 0:00:03.3]} 28... Rc6 {[%clk 0:00:12.6]} 29. Kh2 {[%clk
0:00:02.6]} 29... a6 {[%clk 0:00:11.7]} 30. Rgf3 {[%clk 0:00:02.7]} 30... Rce6
{[%clk 0:00:11.2]} 31. Qg3 {[%clk 0:00:02.5]} 31... Qe7 {[%clk 0:00:09.5]} 32.
Qf2 {[%clk 0:00:02.2]} 32... Qd6+ {[%clk 0:00:08.5]} 33. Kg1 {[%clk 0:00:01]}
33... Ng6 {[%clk 0:00:08.8]} 34. Kh1 {[%clk 0:00:01.2]} 34... Ne5 {[%clk
0:00:08.9]} 35. Bxe5 {[%clk 0:00:01.3]} 35... Qxe5 {[%clk 0:00:09.8]} 0-1

[Event "Early-Titled-Tuesday-Blitz-July-09-2024"]
[Site "Chess.com"]
[Date "2024.07.09"]
[Round "6"]
[White "Djager97"]
[Black "RobertoJBM"]
[Result "1-0"]
[WhiteElo "2631"]
[BlackElo "2835"]
[TimeControl "180+1"]
[EndTime "9:09:02 PDT"]
[Termination "Djager97 won on time"]

1. e4 {[%clk 0:03:00.9]} 1... c6 {[%clk 0:03:00]} 2. d4 {[%clk 0:03:00.7]} 2...
d5 {[%clk 0:03:00.9]} 3. exd5 {[%clk 0:03:01.5]} 3... cxd5 {[%clk 0:03:00.9]} 4.
Bd3 {[%clk 0:03:02.1]} 4... Nc6 {[%clk 0:03:01]} 5. c3 {[%clk 0:03:02.5]} 5...
g6 {[%clk 0:03:01.4]} 6. h3 {[%clk 0:03:02]} 6... Bf5 {[%clk 0:03:01.4]} 7. Be2
{[%clk 0:03:01.7]} 7... Nf6 {[%clk 0:02:59.4]} 8. Nf3 {[%clk 0:03:01.5]} 8...
Bg7 {[%clk 0:02:59]} 9. Bf4 {[%clk 0:03:01.6]} 9... O-O {[%clk 0:02:58.8]} 10.
Nbd2 {[%clk 0:03:01.6]} 10... Ne4 {[%clk 0:02:58.8]} 11. O-O {[%clk 0:03:01.2]}
11... Nxd2 {[%clk 0:02:58.2]} 12. Qxd2 {[%clk 0:03:01.1]} 12... Re8 {[%clk
0:02:53.8]} 13. Rfe1 {[%clk 0:03:00.2]} 13... Rc8 {[%clk 0:02:53.7]} 14. Bf1
{[%clk 0:02:58.3]} 14... Be4 {[%clk 0:02:52.1]} 15. Ng5 {[%clk 0:02:57.7]} 15...
Bf5 {[%clk 0:02:52.5]} 16. g4 {[%clk 0:02:56.2]} 16... Bd7 {[%clk 0:02:51.4]}
17. Bg2 {[%clk 0:02:56.1]} 17... e6 {[%clk 0:02:48.4]} 18. Nf3 {[%clk
0:02:36.7]} 18... Na5 {[%clk 0:02:43.1]} 19. b3 {[%clk 0:02:28.5]} 19... Bb5
{[%clk 0:02:39.1]} 20. Re3 {[%clk 0:02:24.4]} 20... b6 {[%clk 0:02:35.3]} 21.
Rae1 {[%clk 0:02:23.3]} 21... Nc6 {[%clk 0:02:21.3]} 22. h4 {[%clk 0:02:21.9]}
22... Qd7 {[%clk 0:02:13.4]} 23. h5 {[%clk 0:02:19.9]} 23... e5 {[%clk
0:02:03.6]} 24. Nxe5 {[%clk 0:02:05]} 24... Nxe5 {[%clk 0:02:03.9]} 25. Bxe5
{[%clk 0:01:48.4]} 25... Qxg4 {[%clk 0:02:01.2]} 26. Bxg7 {[%clk 0:01:41.3]}
26... Kxg7 {[%clk 0:01:59.2]} 27. h6+ {[%clk 0:01:39.2]} 27... Kf8 {[%clk
0:01:53.4]} 28. Rxe8+ {[%clk 0:01:06.3]} 28... Rxe8 {[%clk 0:01:51.6]} 29. Rxe8+
{[%clk 0:01:05.5]} 29... Bxe8 {[%clk 0:01:52.5]} 30. c4 {[%clk 0:00:54.4]} 30...
dxc4 {[%clk 0:01:45.3]} 31. bxc4 {[%clk 0:00:53.7]} 31... Ke7 {[%clk 0:01:34.3]}
32. d5 {[%clk 0:00:24.2]} 32... Qxc4 {[%clk 0:00:52.1]} 33. Qe3+ {[%clk
0:00:20.8]} 33... Kd8 {[%clk 0:00:33.5]} 34. Qe5 {[%clk 0:00:17.5]} 34... Qc1+
{[%clk 0:00:30.3]} 35. Kh2 {[%clk 0:00:13.9]} 35... Qxh6+ {[%clk 0:00:30.1]} 36.
Kg3 {[%clk 0:00:14.5]} 36... Qc1 {[%clk 0:00:20.1]} 37. d6 {[%clk 0:00:10.1]}
37... Qa3+ {[%clk 0:00:03.6]} 38. Bf3 {[%clk 0:00:10.5]} 38... Bd7 {[%clk
0:00:01.1]} 39. Qe7+ {[%clk 0:00:10.9]} 39... Kc8 {[%clk 0:00:01.7]} 40. Qf8+
{[%clk 0:00:10.9]} 1-0